fUSD/lending_fUSD_20250216
["ID","MTS","AMOUNT","RATE_DAILY","PERIOD"]
[353256732,1739719858330,-500.0,0.00011205,2]
[353256733,1739719858339,-661.28,0.00011205,2]
[353256734,1739719858348,-763.65,0.00011205,2]
[353256735,1739719858359,-500.0,0.00011205,2]
[353256736,1739719858368,-500.0,0.00011205,2]
[353256737,1739719858377,-696.46,0.00011205,2]
[353256738,1739719858386,-1505.24,0.00011205,2]
[353256739,1739719858396,-500.0,0.00011205,2]
[353256740,1739719858405,-500.0,0.00011205,2]
[353256741,1739719858415,-500.0,0.00011205,2]
[353256742,1739719858425,-500.0,0.00011205,2]
[353256743,1739719858435,-910.39,0.00011205,2]
[353256744,1739719858446,-1016.22,0.00011205,2]
[353256745,1739719858455,-1653.06,0.00011205,2]
[353256746,1739719858465,-840.07,0.00011205,2]
[353256747,1739719858474,-500.0,0.00011205,2]
[353256748,1739719858483,-997.87,0.00011205,2]
[353256749,1739719858494,-500.0,0.00011205,2]
[353256750,1739719858504,-1941.86,0.00011205,2]
[353256751,1739719858513,-1341.68,0.00011205,2]
[353256752,1739719858522,-500.0,0.00011205,2]
[353256753,1739719858531,-500.0,0.00011205,2]
[353256754,1739719858541,-960.55,0.00011205,2]
[353256755,1739719858550,-500.0,0.00011205,2]
[353256756,1739719858559,-1590.08,0.00011205,2]
[353256757,1739719858568,-500.0,0.00011205,2]
[353256758,1739719858579,-1316.29,0.00011205,2]
[353256759,1739719858589,-628.04,0.00011205,2]
[353256760,1739719858598,-967.16,0.00011205,2]
[353256761,1739719858608,-500.0,0.00011205,2]
[353256762,1739719858617,-500.0,0.00011205,2]
[353256763,1739719858627,-1082.77,0.00011205,2]
[353256764,1739719858636,-4185.89,0.00011205,2]
[353256765,1739719858646,-537.42,0.00011205,2]
[353256766,1739719858655,-500.0,0.00011205,2]
[353256767,1739719858664,-503.61280316,0.00011205,2]
[353256768,1739719858674,-1148.65,0.00011205,2]
[353256769,1739719858687,-522.8,0.00011205,2]
[353256770,1739719858697,-500.0,0.00011205,2]
[353256771,1739719858707,-1133.71,0.00011205,2]
[353256772,1739719858716,-1188.19,0.00011205,2]
[353256773,1739719858726,-500.0,0.00011205,2]
[353256774,1739719858735,-1545.2,0.00011205,2]
[353256775,1739719858744,-500.0,0.00011205,2]
[353256776,1739719858754,-1208.7,0.00011205,2]
[353256777,1739719858763,-500.0,0.00011205,2]
[353256778,1739719858772,-3059.32,0.00011205,2]
[353256779,1739719858782,-500.0,0.00011205,2]
[353256780,1739719858791,-575.61,0.00011205,2]
[353256781,1739719858800,-1330.36,0.00011205,2]
[353256782,1739719858809,-500.0,0.00011205,2]
[353256783,1739719858819,-1260.47,0.00011205,2]
[353256784,1739719858828,-500.0,0.00011205,2]
[353256785,1739719858837,-500.0,0.00011205,2]
[353256786,1739719858846,-944.72,0.00011205,2]
[353256787,1739719858855,-657.52,0.00011205,2]
[353256788,1739719858865,-656.43,0.00011205,2]
[353256789,1739719858874,-533.75,0.00011205,2]
[353256790,1739719858883,-500.0,0.00011205,2]
[353256791,1739719858892,-500.0,0.00011205,2]
[353256792,1739719858901,-1280.71,0.00011205,2]
[353256793,1739719858912,-1667.11,0.00011205,2]
[353256794,1739719858921,-1761.78,0.00011205,2]
[353256795,1739719858930,-500.0,0.00011205,2]
[353256796,1739719858939,-655.49,0.00011205,2]
[353256797,1739719858948,-765.75,0.00011205,2]
[353256798,1739719858957,-450.16181234,0.00011205,2]
[353256799,1739719858966,-954.99,0.00011205,2]
[353256800,1739719858975,-510.92,0.00011205,2]
[353256801,1739719858984,-1071.72,0.00011205,2]
[353256802,1739719858993,-898.62,0.00011205,2]
[353256803,1739719859002,-963.74,0.00011205,2]
[353256804,1739719859011,-500.0,0.00011205,2]
[353256805,1739719859020,-500.0,0.00011205,2]
[353256806,1739719859029,-500.0,0.00011205,2]
[353256807,1739719859038,-1095.34,0.00011205,2]
[353256808,1739719859047,-500.0,0.00011205,2]
[353256809,1739719859056,-1432.53,0.00011205,2]
[353256810,1739719859065,-1288.05,0.00011205,2]
[353256811,1739719859074,-1131.27,0.00011205,2]
[353256812,1739719859083,-1497.56,0.00011205,2]
[353256813,1739719859093,-1710.67,0.00011205,2]
[353256814,1739719859102,-938.67,0.00011205,2]
[353256815,1739719859111,-500.0,0.00011205,2]
[353256816,1739719859120,-922.59,0.00011205,2]
[353256817,1739719859129,-313.08,0.00011205,2]
[353256818,1739719859138,-500.0,0.00011205,2]
[353256819,1739719859147,-500.0,0.00011205,2]
[353256820,1739719859156,-1297.94,0.00011205,2]
[353256821,1739719859165,-500.0,0.00011205,2]
[353256822,1739719859174,-1275.03,0.00011205,2]
[353256823,1739719859184,-1207.44,0.00011205,2]
[353256824,1739719859193,-857.03,0.00011205,2]
[353256825,1739719859204,-1139.27,0.00011205,2]
[353256826,1739719859216,-989.2,0.00011205,2]
[353256827,1739719859226,-2609.71,0.00011205,2]
[353256828,1739719859235,-2357.36,0.00011205,2]
[353256829,1739719859244,-948.68,0.00011205,2]
[353256830,1739719859254,-500.0,0.00011205,2]
[353256831,1739719859262,-500.0,0.00011205,2]
[353256832,1739719859271,-1322.5,0.00011205,2]
[353256833,1739719859280,-745.27,0.00011205,2]
[353256834,1739719859291,-1014.65,0.00011205,2]
[353256835,1739719859300,-3965.85,0.00011205,2]
[353256836,1739719859310,-732.97,0.00011205,2]
[353256837,1739719859319,-1054.68,0.00011205,2]
[353256838,1739719859328,-1445.76,0.00011205,2]
[353256839,1739719859338,-500.0,0.00011205,2]
[353256840,1739719859347,-1029.25,0.00011205,2]
[353256841,1739719859356,-647.83,0.00011205,2]
[353256842,1739719859365,-500.0,0.00011205,2]
[353256843,1739719859374,-500.0,0.00011205,2]
[353256844,1739719859383,-1589.44,0.00011205,2]
[353256845,1739719859393,-500.0,0.00011205,2]
[353256846,1739719859402,-1129.52,0.00011205,2]
[353256847,1739719859412,-500.0,0.00011205,2]
[353256848,1739719859421,-1428.0,0.00011205,2]
[353256849,1739719859430,-500.0,0.00011205,2]
[353256850,1739719859439,-856.52,0.00011205,2]
[353256851,1739719859448,-1397.84,0.00011205,2]
[353256852,1739719859457,-2006.41,0.00011205,2]
[353256853,1739719859466,-1495.83,0.00011205,2]
[353256854,1739719859475,-2283.55,0.00011205,2]
[353256855,1739719859484,-1573.52,0.00011205,2]
[353256856,1739719859493,-950.54,0.00011205,2]
[353256857,1739719859502,-500.0,0.00011205,2]
[353256858,1739719859512,-1000.0,0.00011205,2]
[353256859,1739719859522,-1359.93,0.00011205,2]
[353256860,1739719859531,-500.0,0.00011205,2]
[353256861,1739719859541,-629.85,0.00011205,2]
[353256862,1739719859552,-500.0,0.00011205,2]
[353256863,1739719859562,-500.0,0.00011205,2]
[353256864,1739719859572,-1550.81,0.00011205,2]
[353256865,1739719859581,-1723.99,0.00011205,2]
[353256866,1739719859591,-937.03,0.00011205,2]
[353256867,1739719859600,-151.0,0.00011205,2]
[353256868,1739719859611,-1047.35,0.00011205,2]
[353256869,1739719859622,-835.09,0.00011205,2]
[353256870,1739719859631,-500.0,0.00011205,2]
[353256871,1739719859640,-989.7,0.00011205,2]
[353256872,1739719859648,-1680.52,0.00011205,2]
[353256873,1739719859658,-191.62,0.00011205,2]
[353256874,1739719859667,-502.61,0.00011205,2]
[353256875,1739719859675,-2083.21,0.00011205,2]
[353256876,1739719859684,-1596.94,0.00011205,2]
[353256877,1739719859694,-685.52,0.00011205,2]
[353256878,1739719859703,-2108.61,0.00011205,2]
[353256879,1739719859713,-500.0,0.00011205,2]
[353256880,1739719859722,-1064.74,0.00011205,2]
[353256881,1739719859731,-500.0,0.00011205,2]
[353256882,1739719859740,-704.43,0.00011205,2]
[353256883,1739719859750,-1852.92,0.00011205,2]
[353256884,1739719859759,-500.0,0.00011205,2]
[353256885,1739719859769,-500.0,0.00011205,2]
[353256886,1739719859778,-500.0,0.00011205,2]
[353256887,1739719859787,-564.7,0.00011205,2]
[353256888,1739719859796,-726.22,0.00011205,2]
[353256889,1739719859805,-1272.36,0.00011205,2]
[353256890,1739719859815,-500.0,0.00011205,2]
[353256891,1739719859824,-500.0,0.00011205,2]
[353256892,1739719859833,-709.56,0.00011205,2]
[353256893,1739719859842,-500.0,0.00011205,2]
[353256894,1739719859851,-580.11,0.00011205,2]
[353256895,1739719859860,-1243.11,0.00011205,2]
[353256896,1739719859869,-1320.64,0.00011205,2]
[353256897,1739719859879,-500.0,0.00011205,2]
[353256898,1739719859888,-893.54,0.00011205,2]
[353256899,1739719859897,-505.85046185,0.00011205,2]
[353256900,1739719859907,-636.44,0.00011205,2]
[353256901,1739719859917,-500.0,0.00011205,2]
[353256902,1739719859926,-748.46,0.00011205,2]
[353256903,1739719859936,-500.0,0.00011205,2]
[353256904,1739719859946,-500.0,0.00011205,2]
[353256905,1739719859955,-740.82,0.00011205,2]
[353256906,1739719859965,-500.0,0.00011205,2]
[353256907,1739719859974,-1055.86,0.00011205,2]
[353256908,1739719859983,-1117.63,0.00011205,2]
[353256909,1739719859992,-857.05,0.00011205,2]
[353256910,1739719860002,-500.0,0.00011205,2]
[353256911,1739719860011,-500.0,0.00011205,2]
[353256912,1739719860021,-500.0,0.00011205,2]
[353256913,1739719860030,-1143.81623636,0.00011223,2]
[353256914,1739719860039,-1000.0,0.00011229,2]
[353256915,1739719860049,-1209.53685865,0.00011232,2]
[353256916,1739719860058,-151.34313578,0.00011246,2]
[353256917,1739719860068,-500.0,0.00011246,2]
[353256918,1739719860077,-500.0,0.00011286,2]
[353256919,1739719860087,-542.47955154,0.00011286,2]
[353256920,1739719860096,-500.0,0.00011286,2]
[353256921,1739719860105,-500.0,0.00011286,2]
[353256922,1739719860114,-500.0,0.00011286,2]
[353256923,1739719860124,-500.0,0.00011286,2]
[353256924,1739719860133,-500.0,0.00011286,2]
[353256925,1739719860142,-500.0,0.00011286,2]
[353256926,1739719860151,-500.0,0.00011286,2]
[353256927,1739719860160,-500.0,0.00011286,2]
[353256928,1739719860170,-305.60337463,0.00011286,2]
[353256929,1739719860179,-500.0,0.00011286,2]
[353256930,1739719860189,-500.0,0.00011286,2]
[353256931,1739719860199,-517.26163469,0.00011286,2]
[353256932,1739719860210,-500.0,0.00011287,2]
[353256933,1739719860221,-500.0,0.00011287,2]
[353256934,1739719860230,-239.34,0.00011287,2]
[353256935,1739719860239,-500.0,0.00011287,2]
[353256936,1739719860249,-500.0,0.00011287,2]
[353256937,1739719860259,-500.0,0.00011287,2]
[353256938,1739719860269,-509.66,0.00011287,2]
[353256939,1739719860278,-500.0,0.00011287,2]
[353256940,1739719860290,-500.0,0.00011287,2]
[353256941,1739719860299,-500.0,0.00011287,2]
[353256942,1739719860308,-385.19,0.00011287,2]
[353256943,1739719860318,-500.0,0.00011287,2]
[353256944,1739719860327,-500.0,0.00011287,2]
[353256945,1739719860336,-500.0,0.00011287,2]
[353256946,1739719860345,-500.0,0.00011287,2]
[353256947,1739719860354,-500.0,0.00011287,2]
[353256948,1739719860519,-386.04,0.00011287,2]
[353256949,1739719860529,-500.0,0.00011287,2]
[353256950,1739719860538,-500.0,0.00011287,2]
[353256951,1739719860547,-500.0,0.00011287,2]
[353256952,1739719860556,-500.0,0.00011287,2]
[353256953,1739719860565,-500.0,0.00011287,2]
[353256954,1739719860574,-546.98,0.00011287,2]
[353256955,1739719860583,-778.31,0.00011287,2]
[353256956,1739719860591,-500.0,0.00011287,2]
[353256957,1739719860601,-720.05,0.00011287,2]
[353256958,1739719860610,-500.0,0.00011287,2]
[353256959,1739719860619,-500.0,0.00011287,2]
[353256960,1739719860628,-500.0,0.00011287,2]
[353256961,1739719860637,-982.93,0.00011287,2]
[353256962,1739719860646,-500.0,0.00011287,2]
[353256963,1739719860655,-610.07,0.00011287,2]
[353256964,1739719860664,-500.0,0.00011287,2]
[353256965,1739719860673,-500.0,0.00011287,2]
[353256966,1739719860682,-812.65,0.00011287,2]
[353256967,1739719860691,-500.0,0.00011287,2]
[353256968,1739719860700,-500.0,0.00011287,2]
[353256969,1739719860709,-500.0,0.00011287,2]
[353256970,1739719860718,-500.0,0.00011287,2]
[353256971,1739719860727,-583.33324076,0.00011287,2]
[353256972,1739719860737,-500.0,0.00011287,2]
[353256973,1739719860746,-500.0,0.00011287,2]
[353256974,1739719860755,-500.0,0.00011287,2]
[353256975,1739719860765,-500.0,0.00011287,2]
[353256976,1739719860774,-500.0,0.00011287,2]
[353256977,1739719860784,-500.0,0.00011287,2]
[353256978,1739719860793,-761.58,0.00011287,2]
[353256979,1739719860802,-500.0,0.00011287,2]
[353256980,1739719860811,-641.10487755,0.00011287,2]
[353256981,1739719860822,-527.09,0.00011287,2]
[353256982,1739719860838,-500.0,0.00011287,2]
[353256983,1739719860848,-1082.54,0.00011287,2]
[353256984,1739719860857,-500.0,0.00011287,2]
[353256985,1739719860867,-797.05,0.00011287,2]
[353256986,1739719860878,-500.0,0.00011287,2]
[353256987,1739719860888,-477.78625589,0.00011287,2]
[353256988,1739719860899,-717.56,0.00011287,2]
[353256989,1739719860910,-607.4,0.00011287,2]
[353256990,1739719860921,-507.45,0.00011287,2]
[353256991,1739719860932,-500.0,0.00011287,2]
[353256992,1739719860943,-682.32,0.00011287,2]
[353256993,1739719860955,-500.0,0.00011287,2]
[353256994,1739719860967,-552.31,0.00011287,2]
[353256995,1739719860977,-1095.09,0.00011287,2]
[353256996,1739719860988,-500.0,0.00011287,2]
[353256997,1739719860998,-500.0,0.00011287,2]
[353256998,1739719861008,-500.0,0.00011287,2]
[353256999,1739719861019,-500.0,0.00011287,2]
[353257000,1739719861029,-500.0,0.00011287,2]
[353257001,1739719861039,-500.0,0.00011287,2]
[353257002,1739719861048,-500.0,0.00011287,2]
[353257003,1739719861058,-500.0,0.00011287,2]
[353257004,1739719861067,-500.0,0.00011287,2]
[353257005,1739719861077,-500.0,0.00011287,2]
[353257006,1739719861086,-500.0,0.00011287,2]
[353257007,1739719861095,-500.0,0.00011287,2]
[353257008,1739719861105,-500.0,0.00011287,2]
[353257009,1739719861115,-500.0,0.00011287,2]
[353257010,1739719861125,-500.0,0.00011287,2]
[353257011,1739719861135,-500.0,0.00011287,2]
[353257012,1739719861144,-752.79,0.00011287,2]
[353257013,1739719861154,-693.95,0.00011287,2]
[353257014,1739719861163,-500.0,0.00011287,2]
[353257015,1739719861172,-606.73,0.00011287,2]
[353257016,1739719861181,-500.0,0.00011287,2]
[353257017,1739719861190,-624.98,0.00011287,2]
[353257018,1739719861199,-500.0,0.00011287,2]
[353257019,1739719861211,-500.0,0.00011287,2]
[353257020,1739719861221,-500.0,0.00011287,2]
[353257021,1739719861231,-500.0,0.00011287,2]
[353257022,1739719861241,-562.44,0.00011287,2]
[353257023,1739719861251,-178.6,0.00011287,2]
[353257024,1739719861262,-791.35,0.00011287,2]
[353257025,1739719861271,-500.0,0.00011287,2]
[353257026,1739719861280,-252.82,0.00011287,2]
[353257027,1739719861291,-500.0,0.00011287,2]
[353257028,1739719861299,-1070.44,0.00011287,2]
[353257029,1739719861309,-500.0,0.00011287,2]
[353257030,1739719861318,-887.17,0.00011287,2]
[353257031,1739719861327,-232.43,0.00011287,2]
[353257032,1739719861336,-500.0,0.00011287,2]
[353257033,1739719861345,-801.39237,0.00011287,2]
[353257034,1739719861354,-658.15,0.00011287,2]
[353257035,1739719861363,-500.0,0.00011287,2]
[353257036,1739719861373,-333.21739022,0.00011287,2]
[353257037,1739719861383,-500.0,0.00011287,2]
[353257038,1739719861391,-500.0,0.00011287,2]
[353257039,1739719861401,-723.28,0.00011287,2]
[353257040,1739719861410,-500.0,0.00011287,2]
[353257041,1739719861419,-615.74,0.00011287,2]
[353257042,1739719861428,-1036.138115,0.00011287,2]
[353257043,1739719861437,-500.0,0.00011287,2]
[353257044,1739719861446,-500.0,0.00011287,2]
[353257045,1739719861456,-279.66,0.00011287,2]
[353257046,1739719861465,-500.0,0.00011287,2]
[353257047,1739719861474,-500.0,0.00011287,2]
[353257048,1739719861484,-500.0,0.00011287,2]
[353257049,1739719861493,-500.0,0.00011287,2]
[353257050,1739719861502,-306.02669583,0.00011287,2]
[353257051,1739719861511,-500.0,0.00011287,2]
[353257052,1739719861521,-500.0,0.00011287,2]
[353257053,1739719861530,-500.0,0.00011287,2]
[353257054,1739719861539,-500.0,0.00011287,2]
[353257055,1739719861550,-500.0,0.00011287,2]
[353257056,1739719861560,-500.0,0.00011287,2]
[353257057,1739719861569,-500.0,0.00011287,2]
[353257058,1739719861579,-1142.85,0.00011287,2]
[353257059,1739719861588,-500.0,0.00011287,2]
[353257060,1739719861597,-500.0,0.00011287,2]
[353257061,1739719861607,-500.0,0.00011287,2]
[353257062,1739719861616,-572.02,0.00011287,2]
[353257063,1739719861627,-500.0,0.00011287,2]
[353257064,1739719861637,-500.0,0.00011287,2]
[353257065,1739719861646,-479.95,0.00011287,2]
[353257066,1739719861656,-564.69,0.00011287,2]
[353257067,1739719861665,-551.48,0.00011287,2]
[353257068,1739719861675,-500.0,0.00011287,2]
[353257069,1739719861683,-259.05,0.00011287,2]
[353257070,1739719861693,-676.69,0.00011287,2]
[353257071,1739719861702,-500.0,0.00011287,2]
[353257072,1739719861711,-615.32,0.00011287,2]
[353257073,1739719861720,-500.0,0.00011287,2]
[353257074,1739719861730,-500.0,0.00011287,2]
[353257075,1739719861739,-594.63,0.00011287,2]
[353257076,1739719861748,-500.0,0.00011287,2]
[353257077,1739719861757,-647.43,0.00011287,2]
[353257078,1739719861766,-500.0,0.00011287,2]
[353257079,1739719861775,-605.03,0.00011287,2]
[353257080,1739719861784,-737.6,0.00011287,2]
[353257081,1739719861794,-500.0,0.00011287,2]
[353257082,1739719861802,-500.0,0.00011287,2]
[353257083,1739719861812,-677.67,0.00011287,2]
[353257084,1739719861821,-500.0,0.00011287,2]
[353257085,1739719861830,-500.0,0.00011287,2]
[353257086,1739719861840,-856.01,0.00011287,2]
[353257087,1739719861849,-580.88,0.00011287,2]
[353257088,1739719861859,-500.0,0.00011287,2]
[353257089,1739719861868,-500.0,0.00011287,2]
[353257090,1739719861877,-500.0,0.00011287,2]
[353257091,1739719861887,-500.0,0.00011287,2]
[353257092,1739719861896,-547.28,0.00011287,2]
[353257093,1739719861905,-659.59,0.00011287,2]
[353257094,1739719861914,-476.93819778,0.00011287,2]
[353257095,1739719861923,-500.0,0.00011287,2]
[353257096,1739719861933,-563.81769377,0.00011287,2]
[353257097,1739719861942,-500.0,0.00011287,2]
[353257098,1739719861953,-500.0,0.00011287,2]
[353257099,1739719861962,-500.0,0.00011287,2]
[353257100,1739719861971,-500.0,0.00011287,2]
[353257101,1739719861981,-633.05558302,0.00011287,2]
[353257102,1739719861990,-679.65,0.00011287,2]
[353257103,1739719861999,-635.55,0.00011287,2]
[353257104,1739719862009,-500.0,0.00011287,2]
[353257105,1739719862018,-1531.02,0.00011287,2]
[353257106,1739719862027,-500.0,0.00011287,2]
[353257107,1739719862036,-500.0,0.00011287,2]
[353257108,1739719862046,-710.02,0.00011287,2]
[353257109,1739719862055,-552.24,0.00011287,2]
[353257110,1739719862064,-609.92,0.00011287,2]
[353257111,1739719862073,-775.33,0.00011287,2]
[353257112,1739719862082,-927.32,0.00011287,2]
[353257113,1739719862091,-1091.82,0.00011287,2]
[353257114,1739719862100,-833.8,0.00011287,2]
[353257115,1739719862109,-713.28,0.00011287,2]
[353257116,1739719862118,-2162.44,0.00011287,2]
[353257117,1739719862127,-234.5,0.00011287,2]
[353257118,1739719862135,-500.0,0.00011287,2]
[353257119,1739719862144,-661.28,0.00011287,2]
[353257120,1739719862153,-763.65,0.00011287,2]
[353257121,1739719862162,-500.0,0.00011287,2]
[353257122,1739719862172,-500.0,0.00011287,2]
[353257123,1739719862181,-696.46,0.00011287,2]
[353257124,1739719862190,-1505.24,0.00011287,2]
[353257125,1739719862200,-500.0,0.00011287,2]
[353257126,1739719862209,-500.0,0.00011287,2]
[353257127,1739719862222,-910.39,0.00011287,2]
[353257128,1739719862232,-1016.22,0.00011287,2]
[353257129,1739719862240,-1653.06,0.00011287,2]
[353257130,1739719862250,-840.07,0.00011287,2]
[353257131,1739719862260,-500.0,0.00011287,2]
[353257132,1739719862269,-997.87,0.00011287,2]
[353257133,1739719862278,-1941.86,0.00011287,2]
[353257134,1739719862288,-1341.68,0.00011287,2]
[353257135,1739719862297,-500.0,0.00011287,2]
[353257136,1739719862306,-500.0,0.00011287,2]
[353257137,1739719862315,-960.55,0.00011287,2]
[353257138,1739719862324,-500.0,0.00011287,2]
[353257139,1739719862333,-1590.08,0.00011287,2]
[353257140,1739719862342,-500.0,0.00011287,2]
[353257141,1739719862351,-1316.29,0.00011287,2]
[353257142,1739719862359,-628.04,0.00011287,2]
[353257143,1739719862368,-967.16,0.00011287,2]
[353257144,1739719862377,-500.0,0.00011287,2]
[353257145,1739719862386,-1082.77,0.00011287,2]
[353257146,1739719862396,-4185.89,0.00011287,2]
[353257147,1739719862406,-537.42,0.00011287,2]
[353257148,1739719862415,-1148.65,0.00011287,2]
[353257149,1739719862424,-522.8,0.00011287,2]
[353257150,1739719862433,-500.0,0.00011287,2]
[353257151,1739719862442,-1133.71,0.00011287,2]
[353257152,1739719862452,-1188.19,0.00011287,2]
[353257153,1739719862461,-500.0,0.00011287,2]
[353257154,1739719862470,-1545.2,0.00011287,2]
[353257155,1739719862479,-500.0,0.00011287,2]
[353257156,1739719862488,-1208.7,0.00011287,2]
[353257157,1739719862497,-500.0,0.00011287,2]
[353257158,1739719862506,-3059.32,0.00011287,2]
[353257159,1739719862515,-500.0,0.00011287,2]
[353257160,1739719862524,-575.61,0.00011287,2]
[353257161,1739719862533,-1330.36,0.00011287,2]
[353257162,1739719862542,-500.0,0.00011287,2]
[353257163,1739719862551,-1260.47,0.00011287,2]
[353257164,1739719862560,-424.82838373,0.00011287,2]
[353257165,1739719862568,-500.0,0.00011287,2]
[353257166,1739719862578,-944.72,0.00011287,2]
[353257167,1739719862586,-657.52,0.00011287,2]
[353257168,1739719862595,-656.43,0.00011287,2]
[353257169,1739719862604,-533.75,0.00011287,2]
[353257170,1739719862613,-500.0,0.00011287,2]
[353257171,1739719862622,-500.0,0.00011287,2]
[353257172,1739719862632,-1280.71,0.00011287,2]
[353257173,1739719862641,-1667.11,0.00011287,2]
[353257174,1739719862651,-1761.78,0.00011287,2]
[353257175,1739719862659,-500.0,0.00011287,2]
[353257176,1739719862668,-655.49,0.00011287,2]
[353257177,1739719862677,-765.75,0.00011287,2]
[353257178,1739719862686,-954.99,0.00011287,2]
[353257179,1739719862695,-510.92,0.00011287,2]
[353257180,1739719862706,-1071.72,0.00011287,2]
[353257181,1739719862717,-898.62,0.00011287,2]
[353257182,1739719862726,-963.74,0.00011287,2]
[353257183,1739719862736,-500.0,0.00011287,2]
[353257184,1739719862745,-500.0,0.00011287,2]
[353257185,1739719862755,-500.0,0.00011287,2]
[353257186,1739719862764,-1095.34,0.00011287,2]
[353257187,1739719862773,-500.0,0.00011287,2]
[353257188,1739719862782,-1432.53,0.00011287,2]
[353257189,1739719862792,-1288.05,0.00011287,2]
[353257190,1739719862801,-1131.27,0.00011287,2]
[353257191,1739719862810,-1497.56,0.00011287,2]
[353257192,1739719862819,-1710.67,0.00011287,2]
[353257193,1739719862828,-938.67,0.00011287,2]
[353257194,1739719862838,-500.0,0.00011287,2]
[353257195,1739719862847,-922.59,0.00011287,2]
[353257196,1739719862856,-500.0,0.00011287,2]
[353257197,1739719862865,-1297.94,0.00011287,2]
[353257198,1739719862875,-500.0,0.00011287,2]
[353257199,1739719862884,-1275.03,0.00011287,2]
[353257200,1739719862895,-1207.44,0.00011287,2]
[353257201,1739719862904,-857.03,0.00011287,2]
[353257202,1739719862914,-1139.27,0.00011287,2]
[353257203,1739719862923,-989.2,0.00011287,2]
[353257204,1739719862933,-2609.71,0.00011287,2]
[353257205,1739719862943,-2357.36,0.00011287,2]
[353257206,1739719862954,-948.68,0.00011287,2]
[353257207,1739719862963,-500.0,0.00011287,2]
[353257208,1739719862973,-500.0,0.00011287,2]
[353257209,1739719862983,-1322.5,0.00011287,2]
[353257210,1739719862994,-745.27,0.00011287,2]
[353257211,1739719863004,-1014.65,0.00011287,2]
[353257212,1739719863013,-732.97,0.00011287,2]
[353257213,1739719863023,-3965.85,0.00011287,2]
[353257214,1739719863035,-1054.68,0.00011287,2]
[353257215,1739719863044,-1445.76,0.00011287,2]
[353257216,1739719863054,-500.0,0.00011287,2]
[353257217,1739719863064,-1029.25,0.00011287,2]
[353257218,1739719863074,-647.83,0.00011287,2]
[353257219,1739719863084,-500.0,0.00011287,2]
[353257220,1739719863094,-500.0,0.00011287,2]
[353257221,1739719863103,-500.0,0.00011287,2]
[353257222,1739719863113,-1129.52,0.00011287,2]
[353257223,1739719863123,-1589.44,0.00011287,2]
[353257224,1739719863132,-500.0,0.00011287,2]
[353257225,1739719863143,-1428.0,0.00011287,2]
[353257226,1739719863153,-500.0,0.00011287,2]
[353257227,1739719863165,-856.52,0.00011287,2]
[353257228,1739719863176,-1397.84,0.00011287,2]
[353257229,1739719863186,-2006.41,0.00011287,2]
[353257230,1739719863195,-1495.83,0.00011287,2]
[353257231,1739719863207,-2283.55,0.00011287,2]